bitfinex/quotes_ETHUSD_20250219
["timestamp","ask_amount","ask_price","bid_price","bid_amount"]
[1739959757143,1.415689,2733.2,2732.8,3.92822]
[1739959757300,1.415689,2733.2,2732.8,0.269]
[1739959757500,1.415689,2733.2,2732.8,3.92816]
[1739959757720,1.415689,2733.2,2732.9,3.6591]
[1739959757952,0.7726,2733.5,2732.9,3.6591]
[1739959758173,3.65844,2733.4,2732.9,3.6591]
[1739959758457,0.55,2733.3,2732.9,7.31811]
[1739959758655,0.55,2733.3,2733.0,0.7916]
[1739959758858,0.55,2733.5,2733.1,3.65882]
[1739959759041,4.48689,2733.8,2733.1,3.65882]
[1739959759367,4.48689,2733.8,2733.0,4.45057]
[1739959759368,4.106729,2733.7,2733.2,3.65866]
[1739959759542,0.55,2733.6,2733.2,7.31726]
[1739959759722,0.448689,2733.7,2733.2,3.6586]
[1739959759921,4.106739,2733.7,2733.2,7.31723]
[1739959760187,0.55,2733.6,2733.3,3.65857]
[1739959760769,0.55,2733.7,2733.3,3.65857]
[1739959760986,0.55,2733.7,2733.4,3.65844]
[1739959761135,0.55,2733.7,2733.4,3.65836]
[1739959761560,0.55,2733.7,2733.3,3.65855]
[1739959763170,0.55,2733.7,2733.4,3.65841]
[1739959764479,0.55,2733.7,2733.3,3.65858]
[1739959765460,0.55,2733.7,2733.4,3.65843]
[1739959765781,4.71181,2733.7,2733.2,3.65862]
[1739959765956,0.55,2733.5,2733.1,3.6588]
[1739959766351,0.55,2733.5,2733.0,4.45045]
[1739959766552,0.55,2733.3,2733.1,0.268]
[1739959766755,1.047032,2733.2,2733.1,0.268]
[1739959766949,1.047032,2733.2,2732.9,3.65904]
[1739959767182,1.047032,2733.2,2733.0,0.268]
[1739959767772,1.047032,2733.2,2733.0,3.92698]
[1739959767977,0.55,2733.2,2733.0,3.92698]
[1739959768875,0.55,2733.2,2733.0,7.58588]
[1739959769285,0.55,2733.2,2733.0,7.58581]
[1739959769587,0.55,2733.2,2733.1,3.65884]
[1739959769768,0.55,2733.2,2733.0,3.9269]
[1739959770087,0.55,2733.2,2733.0,7.5858]
[1739959770255,0.55,2733.2,2733.0,3.9269]
[1739959770688,0.55,2733.2,2733.1,3.65884]
[1739959770874,3.65785,2733.9,2733.3,3.65848]
[1739959771078,3.65785,2733.9,2733.2,4.48291]
[1739959771265,3.65785,2733.9,2733.4,3.65844]
[1739959771849,3.7836,2734.2,2733.2,4.48291]
[1739959771850,7.441,2734.2,2733.2,4.48291]
[1739959772050,3.65786,2733.9,2733.3,3.65857]
[1739959772252,0.7668,2734.1,2733.6,3.65814]
[1739959772787,4.42431,2734.1,2733.6,3.65814]
[1739959773116,3.65725,2734.3,2733.7,4.43372]
[1739959773117,8.07277,2734.3,2733.7,4.43372]
[1739959773311,4.20742,2734.2,2733.8,0.267]
[1739959773618,4.41545,2734.3,2733.8,0.267]
[1739959773801,0.441545,2734.2,2733.8,0.267]
[1739959774001,0.55,2734.1,2733.8,0.267]
[1739959774521,0.55,2734.2,2733.9,3.65769]
[1739959775317,0.7582,2734.3,2734.0,3.65756]
[1739959775483,4.40845,2734.5,2734.0,3.65756]
[1739959775682,5.514971,2734.5,2734.0,3.65756]
[1739959776644,0.55,2734.4,2734.0,3.65756]
[1739959776820,4.20716,2734.4,2733.8,3.92486]
[1739959777029,0.55,2734.4,2733.8,3.92486]
[1739959777210,0.55,2734.4,2733.9,3.6577]
[1739959777405,0.6064971,2734.3,2733.9,3.65776]
[1739959777608,0.55,2734.0,2733.8,0.267]
[1739959777799,1.338,2734.0,2733.8,0.267]
[1739959779610,4.99573,2734.0,2733.8,0.268]
[1739959779808,1.415328,2733.9,2733.8,0.268]
[1739959781100,0.55,2733.8,2733.3,3.65849]
[1739959781303,3.65826,2733.6,2733.4,0.267]
[1739959781521,4.20831,2733.5,2733.4,0.267]
[1739959781717,1.417019,2733.5,2733.4,0.267]
[1739959782441,0.55,2733.5,2733.4,0.267]
[1739959782835,0.8038,2733.7,2733.4,0.267]
[1739959783021,4.47662,2733.9,2733.4,3.92534]
[1739959783218,0.55,2733.8,2733.4,0.267]
[1739959783416,0.55,2733.6,2733.4,0.267]
[1739959783815,4.629081,2733.6,2733.4,0.267]
[1739959784341,0.8263,2733.5,2733.2,8.493]
[1739959784503,4.20847,2733.4,2733.2,8.493]
[1739959784933,4.20858,2733.3,2733.2,8.225]
[1739959785145,4.20858,2733.3,2733.2,8.493]
[1739959785321,5.077901,2733.3,2733.2,8.493]
[1739959785530,5.077901,2733.3,2733.2,8.225]
[1739959786130,5.872801,2733.3,2733.2,8.225]
[1739959786602,6.792801,2733.3,2733.2,8.225]
[1739959789606,4.20876,2733.2,2733.0,0.268]
[1739959789803,1.2292981,2733.1,2733.0,0.268]
[1739959791334,4.8881381,2733.1,2733.0,0.268]
[1739959791546,1.2292981,2733.1,2733.0,0.268]
[1739959791849,4.8881381,2733.1,2733.0,0.268]
[1739959792247,0.55,2733.1,2733.0,0.268]
[1739959793141,5.37357,2733.3,2733.0,0.268]
[1739959793345,0.92,2733.3,2733.0,0.268]
[1739959793542,0.55,2733.2,2733.0,0.268]
[1739959793947,0.92,2733.3,2733.0,0.268]
[1739959795251,0.92,2733.3,2733.0,3.92694]
[1739959795635,0.92,2733.3,2733.2,3.65871]
[1739959796533,3.65818,2733.6,2733.1,4.45053]
[1739959796932,3.65818,2733.6,2733.1,8.10929]
[1739959797173,0.55,2733.7,2733.1,8.10929]
[1739959797638,5.370708,2733.7,2733.1,4.45046]
[1739959798069,0.55,2733.5,2733.1,4.45046]
[1739959798589,3.65824,2733.6,2733.1,4.45046]
[1739959798590,0.55,2733.6,2733.1,4.45046]
[1739959798750,0.55,2733.6,2733.2,3.6587]
[1739959800285,0.55,2733.6,2733.2,7.31732]
[1739959800492,0.55,2733.6,2733.2,3.65862]
[1739959800946,4.20819,2733.6,2733.1,0.7917]
[1739959801148,5.4870198,2733.6,2733.1,0.7917]
[1739959802001,1.8288298,2733.6,2733.1,0.7917]
[1739959802595,1.8288298,2733.6,2733.2,3.6587]
[1739959802949,5.4870198,2733.6,2733.1,0.7917]
[1739959803395,1.8288298,2733.6,2733.2,3.65869]
[1739959803899,1.8288298,2733.6,2733.1,0.7917]
[1739959804050,0.55,2733.6,2733.1,0.7917]
[1739959804397,4.20827,2733.6,2733.1,0.7917]
[1739959804597,4.20827,2733.6,2733.1,4.45054]
[1739959805269,4.20827,2733.6,2733.1,0.7917]
[1739959805651,4.20827,2733.6,2733.1,4.45046]
[1739959806415,0.55,2733.6,2733.2,3.65869]
[1739959806624,0.55,2733.6,2733.2,3.65861]
[1739959806911,0.55,2733.6,2733.3,3.65855]
[1739959807613,3.65778,2733.9,2733.2,3.65865]
[1739959807916,3.0,2733.9,2733.5,4.47811]
[1739959808098,0.55,2733.8,2733.5,4.47811]
[1739959808409,4.48157,2734.2,2733.7,3.65804]
[1739959808612,3.65756,2734.1,2733.6,3.65814]
[1739959809374,0.55,2734.0,2733.6,3.65814]
[1739959809583,4.20767,2734.0,2733.5,0.8198]
[1739959809898,0.55,2734.0,2733.5,4.478]
[1739959810066,0.55,2734.0,2733.6,3.65817]
[1739959810715,0.55,2734.0,2733.5,4.478]
[1739959811016,0.55,2734.0,2733.7,3.65792]
[1739959811313,0.55,2734.0,2733.8,0.267]
[1739959813498,0.55,2734.1,2733.8,0.267]
[1739959814312,4.20757,2734.1,2733.8,0.267]
[1739959814491,0.55,2734.1,2733.8,0.267]
[1739959815814,4.20754,2734.1,2733.8,0.267]
[1739959816005,5.13709371,2734.1,2733.8,0.267]
[1739959816609,1.47955371,2734.1,2733.8,3.92486]
[1739959816805,0.55,2734.1,2733.8,3.92486]
[1739959817115,5.38,2734.2,2733.9,3.6577]
[1739959817288,0.7681,2734.4,2733.8,0.267]
[1739959817289,3.6572,2734.4,2734.0,0.7804]
[1739959817488,3.6572,2734.4,2733.7,3.65795]
[1739959817489,3.65791,2733.8,2733.7,0.267]
[1739959817688,0.55,2733.9,2733.7,0.267]
[1739959818582,0.55,2733.9,2733.7,3.92495]
[1739959818788,0.55,2733.9,2733.7,0.267]
[1739959819197,0.824,2734.1,2733.7,0.267]
[1739959819395,0.824,2734.3,2733.7,1.0849]
[1739959819679,3.65717,2734.4,2733.9,3.6577]
[1739959819879,4.860887,2734.4,2733.7,4.74282]
[1739959820113,3.65744,2734.2,2733.7,4.74282]
[1739959820342,0.55,2734.1,2733.7,4.74282]
[1739959820480,0.55,2734.1,2733.7,1.0849]
[1739959820681,1.374,2734.1,2733.7,0.267]
[1739959820996,5.534734,2734.1,2733.7,0.267]
[1739959821925,5.534734,2734.1,2733.8,0.267]
[1739959823004,1.877144,2734.1,2733.8,0.267]
[1739959823326,0.55,2734.2,2733.8,3.92489]
[1739959824414,0.55,2734.2,2733.8,3.92481]
[1739959825690,0.55,2734.2,2733.8,7.58262]
[1739959825922,0.55,2734.2,2733.8,3.92481]
[1739959826238,0.55,2734.2,2733.8,7.58265]
[1739959826452,0.55,2734.2,2733.8,3.92481]
[1739959826584,5.010917,2734.4,2733.9,4.41882]
[1739959826790,1.7705057,2734.3,2733.9,4.41882]
[1739959827328,0.55,2734.2,2733.9,4.41882]
[1739959827528,0.55,2734.3,2734.0,3.65763]
[1739959827735,0.55,2734.3,2733.9,4.41882]
[1739959829852,0.55,2734.3,2733.9,0.7611]
[1739959830017,5.612405,2734.3,2733.9,0.7611]
[1739959830527,1.955135,2734.3,2733.9,4.41885]
[1739959831055,5.612375,2734.3,2733.9,0.7611]
[1739959834732,5.612375,2734.3,2733.9,4.41886]
[1739959836763,5.612375,2734.3,2733.9,3.65776]
[1739959837258,1.955135,2734.3,2733.9,3.65776]
[1739959837449,0.55,2734.3,2734.0,3.65756]
[1739959837866,0.55,2734.4,2734.1,3.6575]
[1739959838163,0.55,2734.4,2734.2,3.65734]
[1739959838521,5.38,2734.5,2734.2,3.65734]
[1739959840759,0.55,2734.6,2734.2,3.65734]
[1739959841349,5.914021,2734.6,2734.1,0.8186]
[1739959842076,5.914021,2734.6,2734.1,4.47604]
[1739959842445,5.914021,2734.6,2734.2,3.65737]
[1739959842645,9.570971,2734.6,2734.1,0.8186]
[1739959842966,3.65712,2734.4,2734.1,0.8186]
[1739959843163,8.2714241,2734.4,2734.1,0.8186]
[1739959843370,4.20726,2734.3,2733.9,0.7627]
[1739959843570,4.99356,2734.3,2733.9,0.7627]
[1739959844073,1.3363,2734.3,2733.9,4.42046]
[1739959844444,1.3363,2734.3,2734.0,3.65762]
[1739959844770,0.55,2734.3,2733.9,0.7627]
[1739959844981,0.55,2734.3,2734.0,3.65753]
[1739959845140,0.9571141,2734.4,2734.0,3.65753]
[1739959845341,0.7957,2734.5,2734.1,3.65743]
[1739959845542,0.55,2734.5,2734.1,3.65743]
[1739959846277,0.55,2734.5,2734.0,3.65753]
[1739959846444,1.2209791,2734.5,2734.0,3.65753]
[1739959846972,4.45241,2734.7,2734.1,3.65739]
[1739959847172,4.45241,2734.7,2734.0,3.65753]
[1739959847478,0.55,2734.6,2734.1,3.65751]
[1739959847680,0.55,2734.6,2734.2,3.65737]
[1739959847857,0.55,2734.6,2734.3,3.65722]
[1739959848949,0.55,2734.6,2734.2,3.65737]
[1739959849161,0.55,2734.6,2734.2,7.31466]
[1739959849376,0.55,2734.6,2734.2,3.65729]
[1739959849959,0.55,2734.6,2734.2,7.31458]
[1739959850155,0.55,2734.6,2734.3,3.6572]
[1739959850361,0.55,2734.6,2734.3,4.47]
[1739959850947,0.7957,2734.7,2734.3,0.8128]
[1739959851143,6.144,2735.1,2734.7,3.6567]
[1739959851357,0.92,2734.8,2734.7,4.435]
[1739959853406,0.55,2735.2,2734.7,4.435]
[1739959853617,3.0,2735.3,2735.1,0.7667]
[1739959853752,3.0,2735.3,2735.2,3.65603]
[1739959855050,3.0,2735.3,2735.1,0.7667]
[1739959855555,3.0,2735.3,2734.9,3.65635]
[1739959856197,3.0,2735.3,2734.9,7.3127]
[1739959856598,3.0,2735.3,2734.9,3.65635]
[1739959857086,3.0,2735.3,2735.0,3.65628]
[1739959857395,3.65607,2735.2,2734.8,0.8074]
[1739959857607,3.65607,2735.2,2734.6,1.53847928]
[1739959857608,0.665607,2735.2,2734.6,1.53847928]
[1739959857752,3.65628,2735.1,2734.9,0.267]
[1739959858587,3.65628,2735.1,2735.0,0.267]
[1739959858780,3.65628,2735.1,2734.9,0.267]
[1739959860378,3.6563,2735.0,2734.9,0.267]
[1739959860578,3.65628,2735.1,2734.9,0.267]
[1739959860849,3.65626,2735.1,2734.9,0.267]
[1739959861051,4.2063,2735.0,2734.4,0.78]
[1739959861249,3.65724,2734.3,2734.2,8.223]
[1739959861482,0.8051,2734.3,2734.2,8.49]
[1739959861956,1.3697,2734.5,2734.2,8.49]
[1739959862190,0.55,2734.5,2734.2,8.49]
[1739959862506,6.1997,2734.7,2734.2,8.49]
[1739959862669,6.1997,2734.7,2734.2,12.14735]
[1739959862853,9.85641,2734.7,2734.2,8.49]
[1739959863105,6.1997,2734.7,2734.2,12.14728]
[1739959863299,5.38,2734.7,2734.4,3.6571]
[1739959863736,5.38,2734.7,2734.3,0.7947]
[1739959863933,5.38,2734.7,2734.6,4.45334]
[1739959864337,5.38,2734.7,2734.6,0.7965]
[1739959864540,0.55,2735.0,2734.6,0.7965]
[1739959865335,3.65637,2735.0,2734.6,0.7965]
[1739959865906,3.65658,2734.8,2734.3,0.8041]
[1739959866108,3.65671,2734.7,2734.2,8.223]
[1739959866321,3.65686,2734.6,2734.3,0.267]
[1739959866769,3.65698,2734.5,2734.3,0.267]
[1739959867389,3.65686,2734.6,2734.3,0.267]
[1739959867554,3.65699,2734.5,2734.3,0.267]
[1739959868184,0.55,2734.7,2734.3,0.267]
[1739959868185,4.20678,2734.7,2734.3,0.267]
[1739959868762,0.55,2734.7,2734.3,0.267]
[1739959868941,0.55,2734.7,2734.3,4.72824]
[1739959869291,4.4836,2734.8,2734.3,4.72824]
[1739959869502,3.65671,2734.7,2734.3,1.0711]
[1739959870646,3.65684,2734.6,2734.3,1.0711]
[1739959870848,3.65704,2734.5,2734.3,0.267]
[1739959871266,3.6571,2734.4,2734.2,8.223]
[1739959871552,4.20724,2734.3,2734.2,8.223]
[1739959872253,4.20737,2734.2,2734.1,0.267]
[1739959872898,3.65724,2734.3,2734.1,0.267]
[1739959873686,4.20737,2734.2,2734.1,0.267]
[1739959879095,1.3293,2734.2,2733.3,8.222]
[1739959879321,3.65804,2733.7,2733.6,0.267]
[1739959879590,3.65781,2733.9,2733.6,0.267]
[1739959880354,7.86522,2734.1,2733.6,0.267]
[1739959880571,0.55,2733.9,2733.6,0.267]
[1739959880947,0.55,2734.0,2733.6,4.68346]
[1739959881152,5.38,2734.2,2733.8,3.65787]
[1739959881593,0.55,2734.1,2733.7,0.7971]
[1739959881802,5.38,2734.2,2733.7,0.7971]
[1739959881962,3.65729,2734.3,2733.8,3.65783]
[1739959882151,3.65729,2734.3,2733.8,4.205859]
[1739959883301,3.65729,2734.3,2733.8,7.863679]
[1739959883498,6.2033,2734.6,2733.9,3.65776]
[1739959883697,9.03688,2734.6,2734.1,3.6575]
[1739959884193,4.20699,2734.5,2734.0,4.46594]
[1739959884358,0.55,2734.5,2734.1,3.65749]
[1739959884885,4.20697,2734.5,2734.0,1.6755639]
[1739959885384,4.20697,2734.5,2734.0,0.8084]
[1739959885685,7.86407,2734.5,2734.0,0.8084]
[1739959885985,4.20697,2734.5,2734.0,0.8084]
[1739959886191,3.6572,2734.4,2734.0,0.8084]
[1739959886401,4.20697,2734.5,2734.0,0.8084]
[1739959886808,3.65735,2734.3,2734.0,0.8084]
[1739959887156,0.55,2734.3,2734.0,0.8084]
[1739959888556,3.65744,2734.2,2733.8,0.7555]
[1739959889690,3.65744,2734.2,2733.9,0.267]
[1739959890657,3.6576,2734.1,2733.6,9.0051]
[1739959890863,4.20798,2733.8,2733.7,0.267]
[1739959891111,3.65778,2733.9,2733.6,8.224]
[1739959891112,4.20804,2733.7,2733.6,8.224]
[1739959891261,5.38,2734.1,2733.7,0.795]
[1739959891589,0.55,2734.0,2733.7,0.795]
[1739959891789,0.55,2733.8,2733.5,1.0792]
[1739959893277,5.38,2734.1,2734.0,3.65764]
[1739959893489,5.38,2734.5,2734.0,2.7345572]
[1739959893712,3.65665,2734.8,2734.4,0.8122]
[1739959894029,3.65665,2734.8,2734.4,1.0792]
[1739959894177,3.65676,2734.7,2734.4,1.0792]
[1739959894377,9.03644,2734.9,2734.4,4.73622]
[1739959894832,5.38,2734.9,2734.4,4.73622]
[1739959895012,0.025,2735.0,2734.7,3.65667]
[1739959895223,0.025,2735.0,2734.9,3.65644]
[1739959900104,0.025,2735.0,2734.9,12.5718972]
[1739959900309,3.0,2735.3,2735.2,4.47693]
[1739959900482,3.0,2735.3,2735.2,7.4784872]
[1739959900817,3.0,2735.3,2735.2,8.59195292]
[1739959901197,3.0,2735.3,2735.2,5.85739572]
[1739959902828,3.0,2735.3,2735.2,5.85539572]
[1739959903619,3.0,2735.3,2735.2,4.74193]
[1739959904083,3.0,2735.3,2735.2,4.47493]
[1739959904287,3.0,2735.3,2735.2,4.74193]
[1739959905127,3.0,2735.3,2735.2,0.8209]
[1739959905294,3.0,2735.3,2735.2,0.267]
[1739959905495,7.401007,2735.3,2735.2,0.267]
[1739959905701,4.295077,2735.3,2734.7,8.223]
[1739959905900,4.45154,2734.9,2734.8,0.267]
[1739959906636,5.00154,2734.9,2734.8,0.267]
[1739959907618,1.345,2734.9,2734.8,0.267]
[1739959907825,9.03611,2735.2,2734.8,0.267]
[1739959908019,3.65638,2735.0,2734.8,0.267]
[1739959908404,4.20622,2735.1,2734.8,0.267]
[1739959908603,9.84741,2735.2,2734.8,0.267]
[1739959909337,13.50357,2735.2,2734.8,0.267]
[1739959909537,9.84741,2735.2,2734.8,0.267]
[1739959909742,3.65626,2735.1,2734.8,0.267]
[1739959910036,9.84741,2735.2,2734.8,0.267]
[1739959911438,5.38,2735.2,2734.8,0.267]
[1739959911644,3.65618,2735.1,2734.8,0.267]
[1739959911806,3.65634,2735.0,2734.8,0.267]
[1739959912232,3.65644,2734.9,2734.8,0.267]
[1739959912749,3.65657,2734.8,2734.7,8.49]
[1739959913917,5.690385,2735.0,2734.7,8.49]
[1739959914127,4.20646,2734.9,2734.7,8.49]
[1739959914333,3.65657,2734.8,2734.7,8.49]
[1739959914638,3.65657,2734.8,2734.7,8.223]
[1739959914939,3.65657,2734.8,2734.7,8.49]
[1739959915139,4.20646,2734.9,2734.7,8.49]
[1739959915678,4.20657,2734.8,2734.7,8.223]
[1739959916150,5.91167,2734.8,2734.7,8.223]
[1739959916665,11.6462272,2734.8,2734.7,8.223]
[1739959916952,5.00271,2734.1,2734.0,0.267]
[1739959917151,6.1752,2734.1,2734.0,0.267]
[1739959917338,5.38,2734.1,2734.0,0.267]
[1739959920972,4.45222,2734.5,2734.0,0.267]
[1739959921255,5.93,2734.6,2734.0,4.43045365]
[1739959921456,9.58685,2734.6,2734.0,4.39388]
[1739959921656,9.58685,2734.6,2734.0,4.39379]
[1739959921957,9.58685,2734.6,2734.0,3.92454]
[1739959922158,3.65704,2734.5,2734.0,0.267]
[1739959922353,3.65732,2734.3,2734.0,0.267]
[1739959923834,3.65751,2734.1,2734.0,0.267]
[1739959924159,3.65732,2734.3,2734.0,0.267]
[1739959925056,3.65702,2734.5,2734.0,0.267]
[1739959925261,3.65712,2734.4,2734.0,0.267]
[1739959925842,1.039662,2734.5,2734.0,3.92462]
[1739959926048,13.24382,2734.6,2734.0,0.267]
[1739959926361,13.24382,2734.6,2734.0,3.92463]
[1739959927156,3.65699,2734.5,2734.0,3.92463]
[1739959928130,5.93,2734.6,2734.0,0.267]
[1739959928349,4.696737,2734.5,2734.0,0.267]
[1739959928550,3.65712,2734.4,2734.0,0.267]
[1739959930561,3.6573,2734.3,2734.0,0.267]
[1739959930967,3.65712,2734.4,2734.0,0.267]
[1739959931264,4.696687,2734.5,2734.0,3.92456]
[1739959931441,3.65712,2734.4,2734.0,0.267]
[1739959932371,3.65724,2734.3,2734.0,0.267]
[1739959932526,3.6574,2734.2,2734.0,0.267]
[1739959932957,3.6574,2734.2,2733.9,0.7676]
[1739959933232,3.6574,2734.2,2734.1,0.267]
[1739959933567,4.53169557,2734.2,2734.1,0.267]
[1739959935769,0.87429557,2734.2,2734.1,0.267]
[1739959936076,9.58691,2734.6,2734.1,3.92451]
[1739959936929,9.03691,2734.6,2734.1,3.92451]
[1739959937152,9.03691,2734.6,2734.2,0.79497393]
[1739959937153,5.38,2734.6,2734.2,0.79497393]
[1739959937354,5.38,2734.6,2734.4,3.65705]
[1739959937572,5.38,2734.6,2734.3,3.65714]
[1739959937874,5.38,2734.6,2734.5,4.47407]
[1739959938234,5.38,2734.6,2734.5,0.8171]
[1739959938637,0.92,2734.8,2734.5,0.8171]
[1739959938948,0.92,2734.8,2734.7,3.6567]
[1739959939955,0.92,2734.8,2734.6,7.31358]
[1739959940164,5.38,2735.1,2734.8,0.8086]
[1739959940488,5.38,2735.1,2734.9,0.267]
[1739959942582,5.38,2735.1,2735.0,3.6563]
[1739959942761,5.38,2735.1,2734.9,3.92335]
[1739959943766,3.0,2735.3,2735.0,3.6563]
[1739959943976,3.0,2735.3,2734.9,3.92335]
[1739959944664,3.0,2735.3,2734.9,0.267]
[1739959945563,3.665571,2735.3,2734.9,0.267]
[1739959945761,3.665571,2735.3,2735.1,0.021161]
[1739959946367,7.321501,2735.3,2735.1,0.021161]
[1739959946564,3.665571,2735.3,2735.1,0.021161]
[1739959948214,3.65603,2735.2,2735.1,0.021161]
[1739959948365,1.1798541,2735.2,2735.1,0.288161]
[1739959949188,3.0,2735.3,2735.1,0.288161]
[1739959951464,3.0,2735.3,2735.1,0.148961]
[1739959952598,3.0,2735.3,2735.2,0.7846]
[1739959956227,3.0,2735.3,2735.2,4.44063]
[1739959956909,3.0,2735.3,2735.2,4.47188631]
[1739959957116,3.0,2735.3,2735.2,5.57303216]
[1739959957284,3.0,2735.3,2735.2,5.53647645]
[1739959960686,3.0,2735.3,2735.2,11.17029735]
[1739959961393,3.0,2735.3,2735.2,11.43729735]
[1739959962309,3.0,2735.3,2735.2,11.92467195]
[1739959962697,3.0,2735.3,2735.2,12.02467195]
[1739959967727,3.0,2735.3,2735.2,11.92467195]
[1739959968494,0.22853325,2736.6,2735.5,0.7517]
[1739959968803,0.22853325,2736.6,2736.1,0.7517]
[1739959969004,0.22853325,2736.6,2736.2,0.267]
[1739959970509,0.22853325,2736.6,2736.1,0.7517]
[1739959970706,0.22853325,2736.6,2735.9,3.65502]
[1739959970707,0.8247,2736.5,2736.2,0.267]
[1739959970916,0.8247,2736.5,2735.9,4.43442]
[1739959971115,0.8247,2736.5,2736.0,0.267]
[1739959971711,0.8247,2736.5,2736.0,3.92196]
[1739959971947,0.8247,2736.5,2736.1,3.65476]
[1739959972115,0.8247,2736.5,2736.1,3.65474]
[1739959972741,0.8247,2736.5,2736.0,0.267]
[1739959973033,1.29544533,2736.5,2736.0,3.92192]
[1739959973258,0.8247,2736.5,2736.0,3.92192]
[1739959973428,0.8247,2736.5,2736.1,3.65473]
[1739959974403,0.22853325,2736.6,2736.1,3.65473]
[1739959974613,0.22853325,2736.6,2736.5,4.4291]
[1739959975538,0.22853325,2736.6,2736.5,4.6961]
[1739959976253,0.22853325,2736.6,2736.5,5.6094043]
[1739959976436,0.22853325,2736.6,2736.5,5.8764043]
[1739959977820,0.22853325,2736.6,2736.5,5.91293799]
[1739959978021,0.22853325,2736.6,2736.5,5.8764043]
[1739959978218,0.22853325,2736.6,2736.5,5.91293793]
[1739959978530,0.22853325,2736.6,2736.5,5.8764043]
[1739959979638,0.22853325,2736.6,2736.5,5.91293549]
[1739959980038,0.22853325,2736.6,2736.5,5.8764043]
[1739959980239,0.22853325,2736.6,2736.5,6.12885757]
[1739959980472,0.22853325,2736.6,2736.5,6.3627246]
[1739959981880,0.22853325,2736.6,2736.5,6.39925568]
[1739959982278,0.22853325,2736.6,2736.5,6.3627246]
[1739959983358,0.22853325,2736.6,2736.5,11.7227246]
[1739959986188,0.22853325,2736.6,2736.5,11.8227246]
[1739959986557,0.22853325,2736.6,2736.5,11.7227246]
[1739959987397,0.22853325,2736.6,2736.5,11.8227246]
[1739959987966,0.22853325,2736.6,2736.5,20.0377246]
[1739959988652,0.22853325,2736.6,2736.5,19.82180247]
[1739959989299,0.22853325,2736.6,2736.5,20.03799476]
[1739959990203,0.22853325,2736.6,2736.5,19.77099476]
[1739959990714,0.22853325,2736.6,2736.5,20.03699476]
[1739959991785,0.22853325,2736.6,2736.5,19.93699476]
[1739959991964,0.22853325,2736.6,2736.5,19.67099476]
[1739959992168,0.22853325,2736.6,2736.5,19.93699476]
[1739959999900,1e-08,2736.9,2736.5,19.93699476]
[1739960000206,0.05,2737.2,2737.1,4.4556]
[1739960000361,0.05,2737.2,2737.1,9.8156]
[1739960000562,1e-05,2737.5,2737.4,3.6531]
[1739960000767,0.01,2738.4,2738.0,3.65217]
[1739960000990,0.01,2738.4,2738.2,3.65193]
[1739960001191,0.01,2738.4,2738.3,8.84984445]
[1739960001397,0.01,2738.4,2738.3,12.50174445]
[1739960002087,0.01,2738.4,2738.3,17.86174445]
[1739960002285,0.01,2738.4,2738.3,14.20984445]
[1739960003075,0.01,2738.4,2738.3,13.94284445]
[1739960003268,0.7918,2738.4,2738.3,14.05698538]
[1739960004413,0.7918,2738.4,2738.3,8.69698538]
[1739960004711,4.44357,2738.4,2738.3,0.267]
[1739960005001,1.236157,2738.4,2738.3,0.267]
[1739960005777,4.887917,2738.4,2738.3,0.267]
[1739960006620,3.65191,2738.3,2737.9,8.212]
[1739960006819,3.65191,2738.3,2738.0,0.268]
[1739960007120,3.65214,2738.2,2738.0,0.268]
[1739960007269,4.4403,2738.0,2737.9,8.212]
[1739960007603,0.788,2738.0,2737.9,8.48]
[1739960007804,0.788,2738.0,2737.9,8.212]
[1739960007993,0.788,2738.0,2737.9,8.48]
[1739960010606,0.7661,2738.3,2737.9,8.48]
[1739960010987,0.7661,2738.3,2737.9,12.13239]
[1739960011771,0.01,2738.4,2738.1,3.65215]
[1739960011976,0.01,2738.4,2737.9,12.13233]
[1739960012202,0.01,2738.4,2738.0,3.6522]
[1739960012582,0.01,2738.4,2738.1,3.65205]
[1739960012997,0.01,2738.4,2737.9,8.48]
[1739960013203,0.01,2738.4,2737.9,12.13243]
[1739960013716,0.01,2738.4,2737.9,8.48]
[1739960013882,0.01,2738.4,2737.9,9.2093916]
[1739960014293,0.01,2738.4,2737.9,12.8617516]
[1739960014688,0.01,2738.4,2737.9,12.8617416]
[1739960015310,0.01,2738.4,2737.9,14.78663748]
[1739960015516,0.01,2738.4,2737.9,9.2093916]
[1739960015687,0.01,2738.4,2737.9,12.8617716]
[1739960016302,0.01,2738.4,2738.0,3.65228]
[1739960016814,0.01,2738.4,2737.9,9.2093916]
[1739960016983,0.01,2738.4,2737.9,12.8618116]
[1739960017410,3.66179,2738.4,2737.9,11.67029048]
[1739960017730,0.01,2738.4,2737.9,9.2093916]
[1739960018498,0.01,2738.4,2737.9,12.8617916]
[1739960019501,3.66182,2738.4,2737.9,12.8618216]
[1739960020298,0.01,2738.4,2737.9,12.8618216]
[1739960020494,3.66184,2738.4,2737.9,9.2093916]